Cogmind - Beta 11.1 @@@ ROGUE MODE // 2022.10.25 @ 23:46:14 Player: DreamweaverKara Result: Destroyed by S-27 Virus with Autogun Performance ------------- Evolutions (3) 1500 Regions Visited (6) 1200 Robots Destroyed (24) 120 Value Destroyed (789) 789 Prototype IDs (0) 0 Alien Tech Used (0) 0 Bonus (221) 221 TOTAL SCORE: 3830 Bonus ------- Pacifist 200 Follower Combat Kills 21 Cogmind --------- Core Integrity 0/700 Matter 249/300 Energy 98/100 System Corruption 0% Temperature Cool (0) Movement Core (50) Location -7/Lower Caves Parts ------- > --- POWER (1) -------- (None) > --- PROPULSION (4) --- (None) > --- UTILITY (5) ------ (None) > --- WEAPON (3) ------- (None) > --- INVENTORY (5) ---- Shock Absorption System Peak State ------------ > --- POWER ------------ Light Nuclear Core > --- PROPULSION ------- Armored Huge Wheel Armored Huge Wheel > --- UTILITY ---------- Medium Storage Unit Medium Matter Pod Improved Sensor Array Force Booster > --- WEAPON ----------- Makeshift Sword Greatsword > --- INVENTORY -------- Light Ion Engine Light Ion Engine Light Nuclear Core Aluminum Leg Component Analysis Suite Gatling Laser Light EM Pulse Cannon Gauss Rifle [Rating: 42] Favorites ----------- Power Light Nuclear Core Engine Light Ion Engine Power Core Light Nuclear Core Propulsion Aluminum Leg Leg Aluminum Leg Wheel Armored Huge Wheel Utility Medium Storage Unit Device Improved Sensor Array Storage Medium Storage Unit Processor Salvage Targeting Computer Weapon Light Assault Rifle Energy Gun Medium Laser Ballistic Gun Light Assault Rifle Slashing Weapon Makeshift Sword Build | -11 -10 -9 -9 -8 -7 -7 ------- Run | Scr Mat Mat Min Mat Fac Low Slots Evolved 6 | . . 2 . 2 2 . Power . | . . . . . . . Propulsion 2 | . . 1 . . 1 . Utility 3 | . . 1 . 1 1 . Weapon 1 | . . . . 1 . . Parts Attached 44 | 7 . 5 8 18 1 5 Power 8 | 2 . 1 2 1 . 2 Engine 5 | 2 . . 2 . . 1 Core 3 | . . 1 . 1 . 1 Reactor . | . . . . . . . Propulsion 16 | 2 . 1 5 6 1 1 Treads . | . . . . . . . Leg 10 | 2 . 1 3 3 . 1 Wheel 6 | . . . 2 3 1 . Hover . | . . . . . . . Flight . | . . . . . . . Utility 7 | 1 . 2 1 3 . . Device 2 | . . . . 2 . . Storage 4 | 1 . 1 1 1 . . Processor 1 | . . 1 . . . . Hackware . | . . . . . . . Protection . | . . . . . . . Artifact . | . . . . . . . Weapon 13 | 2 . 1 . 8 . 2 Energy Gun 2 | 1 . . . 1 . . Energy Cannon . | . . . . . . . Ballistic Gun 6 | 1 . 1 . 2 . 2 Ballistic Cannon . | . . . . . . . Launcher . | . . . . . . . Special Weapon . | . . . . . . . Impact Weapon . | . . . . . . . Slashing Weapon 5 | . . . . 5 . . Piercing Weapon . | . . . . . . . Special Melee Weapon . | . . . . . . . Unidentified Prototypes . | . . . . . . . Parts Lost 27 | . . 1 2 10 . 14 Power 4 | . . . . 1 . 3 Propulsion 9 | . . . 2 4 . 3 Utility 4 | . . . . . . 4 Weapon 10 | . . 1 . 5 . 4 Highest Loss Streak 12 | . . 1 1 10 . 12 To Critical Strikes 2 | . . . . 1 . 1 Average Slot Usage (%) 78 | . 85 90 94 79 69 53 Engine 4 | . 14 9 8 1 . 2 Core 3 | . . 1 2 6 7 3 Leg 14 | . 28 27 27 11 . . Wheel 5 | . . . . 4 15 11 Device 5 | . . . . 5 15 11 Storage 19 | . 14 18 22 25 15 11 Processor 5 | . . 10 11 4 . . Energy Gun 2 | . 14 4 . 1 . . Ballistic Gun 8 | . 14 17 22 3 . . Slashing Weapon 7 | . . . . 13 15 9 Naked Turns 3 | . . . . . . 3 Heaviest Build 30 | 13 13 17 21 30 30 30 Greatest Support 56 | 20 20 30 30 35 56 56 Greatest Overweight (x) 2 | . . . 1 2 . 2 Average Overweight (x) . | . . . . . . . Largest Inventory Capacity 10 | 8 8 8 10 10 10 10 Average Capacity 9 | 7 8 8 9 10 10 8 Most Carried 10 | 6 6 8 10 10 9 10 Average Carried 7 | 2 6 7 8 7 7 8 Final Capacity 10 | 8 8 8 10 10 10 5 Final Carried 10 | 6 6 8 10 9 9 1 Class Distribution -------------------- 66% | Mutant 17% | Gladiator 10% | Scavenger-Mutant 5% | Scavenger-Gunner Dominant Class ---------------- Mutant | -10/Materials Mutant | -9/Materials Scavenger-Mutant | -9/Mines Mutant | -8/Materials Gladiator | -7/Factory Mutant | -7/Lower Caves Resources | -11 -10 -9 -9 -8 -7 -7 ----------- Run | Scr Mat Mat Min Mat Fac Low Matter Collected 980 | 172 . 363 125 280 . 40 Remotely . | . . . . . . . Salvage Created 986 | . . 284 229 319 . 154 Parts 51 | . . 19 16 11 . 5 Haulers Intercepted . | . . . . . . . Recyclers Shooed . | . . . . . . . Parts Field Recycled . | . . . . . . . Retrieved Matter . | . . . . . . . Parts Self-Destructed 6 | . . . . . . 6 Prevented . | . . . . . . . Kills | -11 -10 -9 -9 -8 -7 -7 ------- Run | Scr Mat Mat Min Mat Fac Low Combat Hostiles Destroyed 24 | . . 8 7 6 . 3 Melee 6 | . . . . 3 . 3 Guns 18 | . . 8 7 3 . . Classes Destroyed 5 | . . 2 1 2 . . Swarmer 8 | . . 3 4 . . 1 Grunt 12 | . . 5 2 4 . 1 Brawler 1 | . . . 1 . . . Sentry 2 | . . . . 1 . 1 Hunter 1 | . . . . 1 . . Best Kill Streak 4 | . . 3 4 4 . 1 Combat Bots Only 4 | . . 3 4 4 . 1 Max Kills in Single Turn 1 | . . 1 1 1 . 1 Gunslinging . | . . . . . . . Exploded . | . . . . . . . Melee 1 | . . . . 1 . 1 Uniques/NPCs Destroyed . | . . . . . . . Combat | -11 -10 -9 -9 -8 -7 -7 -------- Run | Scr Mat Mat Min Mat Fac Low Damage Taken 3863 | . 54 377 233 1163 . 2036 Core 1157 | . 21 78 69 288 . 701 Absorbed by Shields . | . . . . . . . Core Remaining (%) 75 | 100 91 . 63 47 . . Volleys Fired 67 | . . 21 20 19 . 7 Largest 3 | . . 2 2 3 . 2 Hottest 85 | . . 70 40 85 . 51 Shots Fired 124 | . . 42 40 33 . 9 Gun 124 | . . 42 40 33 . 9 Cannon . | . . . . . . . Launcher . | . . . . . . . Special . | . . . . . . . Kinetic 106 | . . 32 40 25 . 9 Thermal 18 | . . 10 . 8 . . Explosive . | . . . . . . . Electromagnetic . | . . . . . . . Robot Hit Streak 12 | . . 7 9 11 . 12 Robot Miss Streak 4 | . . 3 4 2 . 4 Penetration Max . | . . . . . . . Secondary Targets 3 | . . 1 1 1 . . Max Gunslinging Chain 1 | . . 1 1 1 . . Shots Hit Robots 96 | . . 28 22 29 . 17 Core Hits 49 | . . 16 14 14 . 5 Critical Kills 1 | . . . 1 . . . Critical Parts Destroyed 1 | . . . . 1 . . Critical Strikes 5 | . . . 1 1 . 3 Destroy 2 | . . . 1 1 . . Sever 3 | . . . . . . 3 Melee Attacks 27 | . . . . 5 . 22 Impact . | . . . . . . . Slashing 27 | . . . . 5 . 22 Piercing . | . . . . . . . Sneak Attacks . | . . . . . . . Combat Hostiles . | . . . . . . . Follow-up Attacks 4 | . . . . . . 4 Damage Inflicted 1613 | . . 274 170 475 . 694 Guns 842 | . . 274 170 330 . 68 Cannons . | . . . . . . . Explosions . | . . . . . . . Melee 771 | . . . . 145 . 626 Ramming . | . . . . . . . Kinetic 688 | . . 187 170 263 . 68 Thermal 154 | . . 87 . 67 . . Explosive . | . . . . . . . Electromagnetic . | . . . . . . . Impact . | . . . . . . . Slashing 771 | . . . . 145 . 626 Piercing . | . . . . . . . Highest Corruption . | . . . . . . . Average Corruption . | . . . . . . . Corruption Purged . | . . . . . . . Corruption Blocked . | . . . . . . . Overload Shots . | . . . . . . . Overflow Damage 20 | . . . . . . 20 Projectiles . | . . . . . . . Explosions . | . . . . . . . Melee 20 | . . . . . . 20 Knockbacks . | . . . . . . . Impact . | . . . . . . . Kinetic . | . . . . . . . Secondary . | . . . . . . . Self-Inflicted Damage . | . . . . . . . Shots . | . . . . . . . Rammed . | . . . . . . . Targets Rammed . | . . . . . . . Kicked . | . . . . . . . Crushed . | . . . . . . . Highest Temperature 128 | . . 128 3 61 . 1 Average Temperature 38 | . . 48 3 21 . 1 Received Heat Transfer 726 | . 30 180 24 306 . 186 Siege Activations . | . . . . . . . Robots Corrupted . | . . . . . . . Combat Hostiles . | . . . . . . . Parts Fried . | . . . . . . . Impact Corruptions . | . . . . . . . Robots Melted . | . . . . . . . Combat Hostiles . | . . . . . . . Parts Melted . | . . . . . . . Heat Transferred 409 | . . 259 . 150 . . Parts Sabotaged . | . . . . . . . Parts Stolen . | . . . . . . . Parts Stripped . | . . . . . . . Power Chain Reactions . | . . . . . . . Missiles Intercepted . | . . . . . . . Alert | -11 -10 -9 -9 -8 -7 -7 ------- Run | Scr Mat Mat Min Mat Fac Low Peak Influence 308 | . . 205 308 230 12 . Initial 119 | . . . 79 119 12 . Average 110 | . . 103 196 117 12 . Maximum Alert Level 1 | . . 1 1 1 . . Low Security (%) 75 | 100 100 98 39 73 100 . Level 1 24 | . . 1 60 26 . . Level 2 . | . . . . . . . Level 3 . | . . . . . . . Level 4 . | . . . . . . . Level 5 . | . . . . . . . High Security . | . . . . . . . Max Security . | . . . . . . . Squads Dispatched 3 | . 1 1 . 1 . . Investigation 1 | . 1 . . . . . Extermination . | . . . . . . . Reinforcement 2 | . . 1 . 1 . . Assault . | . . . . . . . Garrison . | . . . . . . . Intercept . | . . . . . . . Searches Triggered . | . . . . . . . Construction Impeded . | . . . . . . . Haulers Reinforced . | . . . . . . . Active Scanning Responses . | . . . . . . . Cargo Convoy Interrupts . | . . . . . . . Stealth | -11 -10 -9 -9 -8 -7 -7 --------- Run | Scr Mat Mat Min Mat Fac Low Distress Signals 2 | . . 1 . 1 . . Communications Jammed . | . . . . . . . Distress Signals . | . . . . . . . Times Spotted 49 | . 2 13 11 11 . 12 Peak Tracking Total 8 | . 1 6 4 7 . 8 Tactical Retreats 4 | . . . 1 1 . 2 Traps | -11 -10 -9 -9 -8 -7 -7 ------- Run | Scr Mat Mat Min Mat Fac Low Traps Triggered 1 | . 1 . . . . . Indirectly . | . . . . . . . Trap Hack Attempts . | . . . . . . . Triggered . | . . . . . . . Disarmed . | . . . . . . . Reprogrammed . | . . . . . . . Reused . | . . . . . . . Traps Extracted . | . . . . . . . Installed . | . . . . . . . Triggered . | . . . . . . . Machines | -11 -10 -9 -9 -8 -7 -7 ---------- Run | Scr Mat Mat Min Mat Fac Low Machines Disabled . | . . . . . . . Max in Single Turn . | . . . . . . . Machines Sabotaged . | . . . . . . . Garrisons Compromised . | . . . . . . . Overloaded Fab Kills . | . . . . . . . Hacking | -11 -10 -9 -9 -8 -7 -7 --------- Run | Scr Mat Mat Min Mat Fac Low Machines Accessed 7 | . . 3 . 4 . . Terminals 7 | . . 3 . 4 . . Fabricators . | . . . . . . . Repair Stations . | . . . . . . . Recycling Units . | . . . . . . . Scanalyzers . | . . . . . . . Garrison Access . | . . . . . . . Total Hacks 11 | . . 5 . 6 . . Successful 9 | . . 4 . 5 . . Failed 2 | . . 1 . 1 . . Catastrophic 1 | . . . . 1 . . Database Lockouts . | . . . . . . . Manual 2 | . . . . 2 . . Terminals 11 | . . 5 . 6 . . Fabricators . | . . . . . . . Repair Stations . | . . . . . . . Recycling Units . | . . . . . . . Scanalyzers . | . . . . . . . Garrison Access . | . . . . . . . Terminal Hacks 9 | . . 4 . 5 . . Record 4 | . . . . 4 . . Alert Level 1 | . . 1 . . . . Unreport Threat 1 | . . . . 1 . . Zone Layout 3 | . . 3 . . . . Fabricator Hacks . | . . . . . . . Repair Station Hacks . | . . . . . . . Recycling Unit Hacks . | . . . . . . . Scanalyzer . | . . . . . . . Garrison Access Hacks . | . . . . . . . Unauthorized Hacks . | . . . . . . . Terminals . | . . . . . . . Fabricators . | . . . . . . . Repair Stations . | . . . . . . . Recycling Units . | . . . . . . . Scanalyzers . | . . . . . . . Garrison Access . | . . . . . . . Data Cores Recovered . | . . . . . . . Used . | . . . . . . . Hacking Detections 4 | . . 1 . 3 . . Full Trace Events 1 | . . 1 . . . . Feedback Events . | . . . . . . . Feedback Blocked . | . . . . . . . Robot Schematics Acquired . | . . . . . . . Robots Built . | . . . . . . . Authchips . | . . . . . . . Time . | . . . . . . . Total Robot Build Rating . | . . . . . . . Part Schematics Acquired . | . . . . . . . Parts Built . | . . . . . . . Authchips . | . . . . . . . Time . | . . . . . . . Total Part Build Rating . | . . . . . . . Parts Repaired . | . . . . . . . Time . | . . . . . . . Parts Recycled . | . . . . . . . Recycled Matter . | . . . . . . . Retrieved Matter . | . . . . . . . Retrieved Components . | . . . . . . . Parts Scanalyzed . | . . . . . . . Part Schematics Acquired . | . . . . . . . Parts Damaged . | . . . . . . . Bothacking | -11 -10 -9 -9 -8 -7 -7 ------------ Run | Scr Mat Mat Min Mat Fac Low Used RIF Installer . | . . . . . . . Robots Hacked . | . . . . . . . Non-combat . | . . . . . . . Combat . | . . . . . . . Robot Hacks Applied . | . . . . . . . Relay Couplers Released . | . . . . . . . Fabnet Peak Effective % . | . . . . . . . Robots Rewired . | . . . . . . . Allies Hacked . | . . . . . . . Hacks Repelled . | . . . . . . . Allies | -11 -10 -9 -9 -8 -7 -7 -------- Run | Scr Mat Mat Min Mat Fac Low Total Allies 1 | . . . 1 . . . Largest Group 1 | . . . 1 . . . Highest-Rated Group 31 | . . . 31 . . . Highest-Rated Ally 31 | . . . 31 . . . Total Orders . | . . . . . . . Ally Attacks 6 | . . . 6 . . . Total Damage 85 | . . . 85 . . . Kills 3 | . . . 3 . . . Allies Corrupted . | . . . . . . . Allies Melted . | . . . . . . . Intel | -11 -10 -9 -9 -8 -7 -7 ------- Run | Scr Mat Mat Min Mat Fac Low Robot Analysis Total . | . . . . . . . Derelict Logs Recovered 1 | . . . . . . 1 Drone Launches . | . . . . . . . Drone Recoveries . | . . . . . . . Exploration | -11 -10 -9 -9 -8 -7 -7 ------------- Run | Scr Mat Mat Min Mat Fac Low Turns Passed 2021 | 117 94 283 351 676 101 399 Spaces Moved 1525 | 91 78 178 230 520 97 331 Core 80 | 10 . . . . . 70 Treads . | . . . . . . . Legs 768 | 81 78 178 221 210 . . Wheels 677 | . . . 9 310 97 261 Hover . | . . . . . . . Flight . | . . . . . . . Fastest Speed 50 | 50 120 120 80 80 100 50 Average Speed 108 | 112 120 120 121 109 100 91 Slowest Speed 190 | 120 120 120 190 190 100 150 Overloaded Moves . | . . . . . . . Propulsion Burnouts . | . . . . . . . Robots Hopped . | . . . . . . . Cave-ins Triggered . | . . . . . . . Exploration Rate (%) 23 | 4 22 25 29 38 3 46 Regions Visited 6 Branch Regions 2 Pre-discovered Areas . | . . . . . . . Known Exits Taken . | . . . . . . . Unknown Exits Taken 6 | 1 1 1 1 1 1 . Scrap Searched 3 | . . . 1 . . 2 Spaces Dug . | . . . . . . . Terrain Destroyed . | . . . . . . . Melee . | . . . . . . . Projectile . | . . . . . . . AOE . | . . . . . . . Terrain Rammed . | . . . . . . . Walls Destroyed . | . . . . . . . Machines Disabled . | . . . . . . . Actions | -11 -10 -9 -9 -8 -7 -7 --------- Run | Scr Mat Mat Min Mat Fac Low Total 1748 | 102 78 212 269 599 101 387 Wait 45 | . 1 . 2 17 . 25 Move 1519 | 90 77 177 229 519 96 331 Hop . | . . . . . . . Pick Up 22 | 5 . 5 3 5 3 1 Fast Attach 26 | 6 . 4 6 10 . . Attach 17 | . . 1 2 8 1 5 Detach 15 | . . 1 5 9 . . Swap 1 | 1 . . . . . . Drop 13 | . . 3 2 7 1 . Fire 67 | . . 21 20 19 . 7 Melee 23 | . . . . 5 . 18 Ram . | . . . . . . . Kick . | . . . . . . . Crush . | . . . . . . . Escape Stasis . | . . . . . . . Rewire . | . . . . . . . Trap . | . . . . . . . Miscellaneous . | . . . . . . . Route ------- -11/Scrapyard -10/Materials -9/Materials -9/Mines -8/Materials -7/Factory -7/Lower Caves History --------- Turn | Location | Event 12 | -11/Scrapyard | Discovered new exit (range 16) 118 | -11/Scrapyard | Entered Materials 185 | -10/Materials | Discovered new exit (range 16) 212 | -10/Materials | Entered another Materials area 212 | -9/Materials | Evolved 2 slots: Propulsion x1, Utility x1 300 | -9/Materials | Build established: Mutant 477 | -9/Materials | Discovered new exit (range 15) 495 | -9/Materials | Entered Mines 684 | -9/Mines | Escorted by a lone wolf Derelict 737 | -9/Mines | A weapon hastily lodged in a ceiling crevice suddenly fell to the ground 771 | -9/Mines | Discovered new exit (range 5) 846 | -9/Mines | Entered Materials 846 | -8/Materials | Evolved 2 slots: Utility x1, Weapon x1 1049 | -8/Materials | Lost 10 parts (1p4n5w) 1063 | -8/Materials | Core integrity fell below 50% 1503 | -8/Materials | Discovered new exit (range 14) 1522 | -8/Materials | Entered Factory 1522 | -7/Factory | Evolved 2 slots: Propulsion x1, Utility x1 1610 | -7/Factory | Discovered new exit (range 5) 1623 | -7/Factory | Entered Lower Caves 1652 | -7/Lower Caves | Learned location of 2 exits from Factory 1738 | -7/Lower Caves | Attracted the attention of an 0b10 checkpoint 1753 | -7/Lower Caves | Build established: Gladiator 1923 | -7/Lower Caves | Spotted B-75 Beast 1969 | -7/Lower Caves | Core integrity fell below 50% 2001 | -7/Lower Caves | Core integrity fell below 20% 2022 | -7/Lower Caves | Destroyed by S-27 Virus with Autogun Last Messages --------------- 01956_ Lgt. Ion Engine destroyed. 01957_ Med. Matter Pod destroyed. 01959_ Arm. Huge Wheel destroyed. 01964_ Imp. Sensor Array destroyed. 01984_ Mak. Sword destroyed. 01986_ Aluminum Leg destroyed. 01986_ S-27 Virus destroyed. 01987_ Slug penetrates Wall. 01988_ S-27 Virus destroyed. 01993_ Lgt. Nuclear Core destroyed. 01995_ Critical hit (Destroy). 01995_ Autogun destroyed. 02002_ Lgt. Nuclear Core fries itself beyond repair. 02009_ Slug penetrates Wall. 02011_ Slug penetrates S-27 Virus. 02011_ S-27 Virus destroyed. 02013_ Slug penetrates Wall. 02015_ Slug penetrates S-27 Virus. 02019_ Gauss Rifle destroyed. [Achievement: Back For More] Map ----- +----------------------------------------------------+ | ### #### ##?## = =! | | ## ##?## ### % " | | ?### ##???# #% " " | | ???# #????## #% """" " " | | #??## #?????## # " " """ | | ##??## ?????# # " "" | | ####### ???# # " !! | | #? #??# "]%""""" | | #### #? #??## """" | | #??# #? ##???## ### ## " """ | | ???# #? #?????# #?# ## """" " | | ???# #? #???### #### ### " "" | | #??# #??#####?? ### ### " | | #??# #????# ### ### #?# " ] ] | | #??# #????# ## ### #?# | | ???# #????# ### #??? #?# ### #######] | | ???# #???## ## #??? #?# #?# ###### | | #### #???# #### #?## ## ## | | ## #??## #??## | | # #### ###### ## | | % #?## ### ## | | % ## #???# ### # | | # ## ### #???# | | ######## ### ##??## ## | | ??????## #?# s ###?# ### | | ??????# ### %s @ #?# #?# | | ??????# ### ss #?## ##?# | | ?????## #?# ### #??## ##???# | | ?????# ### #?####?### #?## ##????## | | ?????# #?#### #????????# ### #??###???????## | | ?????## #????###????????# ##??? ##?????????????? | | ??????###???????????????####?????##??????????????? | | ?????????????????????????????????????????????????? | | ?????????????????????????????????????????????????? | | ?????????????????????????????????????????????????? | | ?????????????????????????????????????????????????? | | ?????????????????????????????????????????????????? | | ?????????????????????????????????????????????????? | | ?????????????????????????????????????????????????? | | ?????????????????????????????????????????????????? | | ?????????????????????????????????????????????????? | | ?????????????????????????????????????????????????? | | ?????????????????????????????????????????????????? | | ?????????????????????????????????????????????????? | | ?????????????????????????????????????????????????? | | ?????????????????????????????????????????????????? | | ?????????????????????????????????????????????????? | | ?????????????????????????????????????????????????? | | | | | +----------------------------------------------------+ Best States ------------- Heat Dissipation 34 Energy Generation 14 Energy Capacity 250 Matter Stores 600 Matter Capacity 600 Sight Range 16 Robot Scan Range 15 Terrain Scan Density 10 Evasion (%) 55 Force Boost 20 Salvage Targeting 1 Item Schematics ----------------- None Robot Schematics ------------------ None Fabricated ------------ Nothing Alien Tech Used ----------------- None Achievements -------------- Back For More Challenges ------------ None Game ------ Seed CompositeFissionLog Manual? 0 Play Time 00:41:32 Cumulative 13.9 hours Start 2022.10.18 @ 23:38:32 End 2022.10.25 @ 23:46:14 Sessions 1 Manual Loads 0 Difficulty Rogue Special Mode None Game No. 51 Rogue 51 Adventurer 0 Explorer 0 Win Type - Total 0 Types 0/0/0/0/0/0/0/0/0 Lore% 12 Gallery% 22 Achievement% 18 Wizard Run 0 Options --------- ASCII 1 Keyboard 1 Movement Numpad Keybinds 0 Fullscreen 2 Font 16/Terminus Map View 76x50 Tactical HUD 1 Map Filters NONE Filters NONE Steam 1 RUN: 24a62483-a39d-41f5-a753-a4c30e61483f